Cogmind - Beta 14 @@@ ROGUE MODE // 2024.09.22 @ 13:26:32 Player: Wisdomtree Result: Destroyed by G-34 Mercenary with Small Laser Performance ------------- Evolutions (0) 0 Regions Visited (1) 200 Robots Destroyed (18) 90 Value Destroyed (347) 347 Prototype IDs (0) 0 Alien Tech Used (0) 0 Bonus (0) 0 TOTAL SCORE: 637 Bonus ------- None Cogmind --------- Core Integrity 0/250 Matter 272/300 Energy 248/250 System Corruption 2% Temperature Cool (12) Movement Rolling (200) Ox8 Location -10/Materials Parts ------- > --- POWER (1) -------- Ion Engine > --- PROPULSION (2) --- Wheel > --- UTILITY (2) ------ Huge Storage Unit Structural Scanner > --- WEAPON (2) ------- Light Assault Rifle Light Assault Rifle > --- INVENTORY (25) --- Light Ion Engine Heat Sink Small Storage Unit Machine Analyzer Terrain Scanner ECM Suite ECM Suite Peak State ------------ > --- POWER ------------ Ion Engine > --- PROPULSION ------- Light Treads Light Treads > --- UTILITY ---------- Small Storage Unit Structural Scanner > --- WEAPON ----------- Light Assault Rifle Light Assault Rifle > --- INVENTORY -------- Ion Engine [Rating: 7] Favorites ----------- Power Ion Engine Engine Ion Engine Propulsion Light Treads Treads Light Treads Wheel Wheel Utility Structural Scanner Device Structural Scanner Storage Huge Storage Unit Weapon Light Assault Rifle Ballistic Gun Light Assault Rifle Build | -11 -10 ------- Run | Yrd Mat Slots Evolved . | . . Power . | . . Propulsion . | . . Utility . | . . Weapon . | . . Parts Attached 13 | 6 7 Power 3 | 1 2 Engine 3 | 1 2 Core . | . . Reactor . | . . Propulsion 4 | 2 2 Treads 2 | 2 . Leg . | . . Wheel 2 | . 2 Hover . | . . Flight . | . . Utility 3 | 1 2 Device 1 | . 1 Storage 2 | 1 1 Processor . | . . Hackware . | . . Protection . | . . Artifact . | . . Weapon 3 | 2 1 Energy Gun . | . . Energy Cannon . | . . Ballistic Gun 3 | 2 1 Ballistic Cannon . | . . Launcher . | . . Special Weapon . | . . Impact Weapon . | . . Slashing Weapon . | . . Piercing Weapon . | . . Special Melee Weapon . | . . Unidentified Prototypes . | . . Parts Lost 5 | . 5 Power 2 | . 2 Propulsion 2 | . 2 Utility . | . . Weapon 1 | . 1 Highest Loss Streak 3 | . 3 To Critical Strikes . | . . Average Slot Usage (%) 68 | . 68 Engine 2 | . 2 Treads 6 | . 6 Wheel 3 | . 3 Device 13 | . 13 Storage 14 | . 14 Ballistic Gun 27 | . 27 Peak Build Rating 7 | 6 7 Average Rating 4 | 4 4 On Entrance 3 | . 6 Naked Turns . | . . Heaviest Build 88 | 12 88 Greatest Support 40 | 40 40 Greatest Overweight (x) 27 | . 27 Average Overweight (x) 6 | . 7 Largest Inventory Capacity 25 | 8 25 Average Capacity 21 | 6 21 Most Carried 8 | 1 8 Average Carried 5 | . 6 Final Capacity 25 | 8 25 Final Carried 7 | 1 7 Class Distribution -------------------- 100% | Mutant Dominant Class ---------------- Mutant | -10/Materials Resources | -11 -10 ----------- Run | Yrd Mat Matter Collected 452 | 263 189 Remotely . | . . Salvage Created 573 | 76 497 Parts 38 | 2 36 Haulers Intercepted 1 | . 1 Recyclers Shooed 1 | . 1 Parts Field Recycled . | . . Retrieved Matter . | . . Parts Self-Destructed . | . . Prevented . | . . Kills | -11 -10 ------- Run | Yrd Mat Combat Hostiles Destroyed 12 | . 12 Guns 12 | . 12 Classes Destroyed 6 | 1 5 Worker 1 | . 1 Hauler 1 | . 1 Recycler 1 | 1 . Watcher 3 | . 3 Swarmer 6 | . 6 Grunt 6 | . 6 Best Kill Streak 4 | 1 4 Combat Bots Only 4 | . 4 Max Kills in Single Turn 1 | 1 1 Gunslinging . | . . Exploded . | . . Melee . | . . Uniques/NPCs Destroyed . | . . Combat | -11 -10 -------- Run | Yrd Mat Hostile Shots Fired 108 | . 108 Missed 35 | . 35 Damage Taken 912 | . 912 Core 250 | . 250 Absorbed by Shields . | . . Core Remaining (%) 100 | 100 . Volleys Fired 91 | 8 83 Largest 2 | 1 2 Hottest 40 | 20 40 Shots Fired 174 | 8 166 Gun 174 | 8 166 Cannon . | . . Launcher . | . . Special . | . . Kinetic 174 | 8 166 Thermal . | . . Explosive . | . . Electromagnetic . | . . Robot Hit Streak 14 | 6 14 Robot Miss Streak 7 | 1 7 Penetration Max . | . . Secondary Targets 3 | . 3 Max Gunslinging Chain 1 | . 1 Shots Hit Robots 114 | 7 107 Core Hits 43 | 2 41 Critical Kills . | . . Critical Parts Destroyed 1 | . 1 Critical Strikes 1 | . 1 Destroy 1 | . 1 Melee Attacks . | . . Impact . | . . Slashing . | . . Piercing . | . . Sneak Attacks . | . . Combat Hostiles . | . . Follow-up Attacks . | . . Damage Inflicted 925 | 65 860 Guns 920 | 63 857 Cannons . | . . Explosions . | . . Melee . | . . Ramming 5 | 2 3 Kinetic 920 | 63 857 Thermal . | . . Explosive . | . . Electromagnetic . | . . Impact . | . . Slashing . | . . Piercing . | . . Highest Corruption 2 | . 2 Average Corruption 2 | . 2 Corruption Purged . | . . Corruption Blocked . | . . Effects 6 | . 6 Matter Fused 2 | . 2 Heat Flow Errors 1 | . 1 Energy Discharges 1 | . 1 Parts Rejected 1 | . 1 Misfires 1 | . 1 Overload Shots . | . . Overflow Damage . | . . Projectiles . | . . Explosions . | . . Melee . | . . Knockbacks . | . . Impact . | . . Kinetic . | . . Secondary . | . . Self-Inflicted Damage 1 | . 1 Shots . | . . Rammed 6 | 1 5 Targets Rammed 6 | 1 5 Kicked . | . . Crushed . | . . Highest Temperature 144 | . 144 Average Temperature 14 | . 14 Received Heat Transfer 336 | . 336 Siege Activations . | . . Robots Corrupted . | . . Combat Hostiles . | . . Parts Fried . | . . Impact Corruptions . | . . Robots Melted . | . . Combat Hostiles . | . . Parts Melted . | . . Heat Transferred . | . . Parts Sabotaged . | . . Parts Stolen . | . . Parts Stripped . | . . Power Chain Reactions . | . . Alert | -11 -10 ------- Run | Yrd Mat Peak Influence 218 | 5 218 Initial 3 | . 3 Average 21 | 2 21 Maximum Alert Level 1 | . 1 Low Security (%) 99 | 100 99 Level 1 . | . . Level 2 . | . . Level 3 . | . . Level 4 . | . . Level 5 . | . . High Security . | . . Max Security . | . . Squads Dispatched 2 | . 2 Investigation 1 | . 1 Extermination . | . . Reinforcement 1 | . 1 Assault . | . . Garrison . | . . Intercept . | . . Searches Triggered . | . . Construction Impeded . | . . Haulers Reinforced . | . . Active Scanning Responses . | . . Cargo Convoy Interrupts . | . . Stealth | -11 -10 --------- Run | Yrd Mat Distress Signals 3 | . 3 Communications Jammed . | . . Distress Signals . | . . Times Spotted 24 | . 24 Peak Tracking Total 5 | . 5 Tactical Retreats 4 | . 4 Traps | -11 -10 ------- Run | Yrd Mat Traps Triggered 2 | . 2 Indirectly . | . . Trap Hack Attempts . | . . Triggered . | . . Disarmed . | . . Reprogrammed . | . . Reused . | . . Traps Extracted . | . . Installed . | . . Triggered . | . . Machines | -11 -10 ---------- Run | Yrd Mat Machines Disabled . | . . Max in Single Turn . | . . Machines Repaired . | . . Machines Dismantled . | . . Machines Sabotaged . | . . Overloaded Fab Kills . | . . Hacking | -11 -10 --------- Run | Yrd Mat Machines Accessed 6 | . 6 Terminals 6 | . 6 Fabricators . | . . Repair Stations . | . . Recycling Units . | . . Scanalyzers . | . . Garrison Access . | . . Total Hacks 22 | . 22 Successful 12 | . 12 Failed 10 | . 10 Catastrophic 2 | . 2 Database Lockouts . | . . Manual 15 | . 15 Terminals 22 | . 22 Fabricators . | . . Repair Stations . | . . Recycling Units . | . . Scanalyzers . | . . Garrison Access . | . . Terminal Hacks 12 | . 12 Record 1 | . 1 Robot Analysis 1 | . 1 Terminal Index 1 | . 1 Unreport Threat 2 | . 2 Locate Traps 1 | . 1 Maintenance Status 1 | . 1 Patrol Status 2 | . 2 Transport Status 1 | . 1 Hauler Manifests 1 | . 1 Zone Layout 1 | . 1 Fabricator Hacks . | . . Repair Station Hacks . | . . Recycling Unit Hacks . | . . Scanalyzer . | . . Garrison Access Hacks . | . . Unauthorized Hacks . | . . Terminals . | . . Fabricators . | . . Repair Stations . | . . Recycling Units . | . . Scanalyzers . | . . Garrison Access . | . . Data Cores Recovered . | . . Used . | . . Hacking Detections 6 | . 6 Full Trace Events 1 | . 1 Feedback Events . | . . Feedback Blocked . | . . Robot Schematics Acquired . | . . Robots Built . | . . Authchips . | . . Time . | . . Total Robot Build Rating . | . . Part Schematics Acquired . | . . Parts Built . | . . Authchips . | . . Time . | . . Total Part Build Rating . | . . Parts Repaired . | . . Time . | . . Parts Recycled . | . . Recycled Matter . | . . Retrieved Matter . | . . Retrieved Components . | . . Parts Scanalyzed . | . . Part Schematics Acquired . | . . Parts Damaged . | . . Bothacking | -11 -10 ------------ Run | Yrd Mat Used RIF Installer . | . . Robots Hacked . | . . Non-combat . | . . Combat . | . . Robot Hacks Applied . | . . Relay Couplers Released . | . . Fabnet Peak Effective % . | . . Robots Rewired . | . . Allies Hacked . | . . Hacks Repelled . | . . Allies | -11 -10 -------- Run | Yrd Mat Total Allies . | . . Largest Group . | . . Highest-Rated Group . | . . Highest-Rated Ally . | . . Total Orders . | . . Ally Attacks . | . . Total Damage . | . . Kills . | . . Allies Corrupted . | . . Allies Melted . | . . Intel | -11 -10 ------- Run | Yrd Mat Robot Analysis Total 1 | . 1 Derelict Logs Recovered . | . . Drone Launches . | . . Drone Recoveries . | . . Exploration | -11 -10 ------------- Run | Yrd Mat Turns Passed 2625 | 87 2538 Spaces Moved 562 | 43 519 Core 120 | 6 114 Treads 257 | 37 220 Legs . | . . Wheels 185 | . 185 Hover . | . . Flight . | . . Fastest Speed 50 | 50 140 Average Speed 408 | 144 430 Slowest Speed 1400 | 160 1400 Overloaded Moves . | . . Propulsion Burnouts . | . . Robots Hopped . | . . Cave-ins Triggered . | . . Exploration Rate (%) 48 | 3 93 Regions Visited 1 Branch Regions . Pre-discovered Areas . | . . Known Exits Taken . | . . Unknown Exits Taken 1 | 1 . Scrap Searched . | . . Spaces Dug . | . . Terrain Destroyed . | . . Melee . | . . Projectile . | . . AOE . | . . Terrain Rammed . | . . Walls Destroyed . | . . Machines Disabled . | . . Actions | -11 -10 --------- Run | Yrd Mat Total 697 | 58 639 Wait 17 | . 17 Move 561 | 42 519 Hop . | . . Pick Up 8 | 1 7 Fast Attach 11 | 6 5 Attach 1 | . 1 Detach . | . . Swap 1 | . 1 Drop 1 | . 1 Fire 91 | 8 83 Melee . | . . Ram 4 | . 4 Kick . | . . Crush 2 | 1 1 Escape Stasis . | . . Rewire . | . . Trap . | . . Miscellaneous . | . . Route ------- -11/Scrapyard -10/Materials (discovered 5 exits: [*Mat x3] / [*Min x2]) History --------- Turn | Location | Event 5 | -11/Scrapyard | Discovered new exit (range 14) 88 | -11/Scrapyard | Entered Materials 288 | -10/Materials | Core integrity fell below 50% 305 | -10/Materials | Build established: Mutant 360 | -10/Materials | Discovered new exit (range 16) 494 | -10/Materials | Discovered new exit (range 8) 650 | -10/Materials | Core integrity fell below 20% 682 | -10/Materials | Lost 3 parts (1p2n) 1900 | -10/Materials | Discovered new exit (range 10) 2403 | -10/Materials | Discovered new exit (range 9) 2567 | -10/Materials | Discovered new exit (range 6) 2626 | -10/Materials | Destroyed by G-34 Mercenary with Small Laser Last Messages --------------- 3 Builders 2 Tunnelers 3 Recyclers Downloaded coordinate data. 02514_ Connecting with Terminal... >>Enumerate(Patrols) Retrieving latest reported positions... No active patrol squads found. 02557_ System corrupted: Matter fused (-8). 02560_ U-05 Engineer lays Concrete. 02563_ Triggered Alarm Trap. 02563_ An alarm sounds. 02563_ ALERT: Alarm triggered, dispatching investigation squad. 02563_ K-01 Serf collects debris. 02567_ EXIT=FOUND 02570_ U-05 Engineer builds a Wall. 02572_ System corrupted: Heat flow error (+169). 02580_ U-05 Engineer lays Concrete. 02619_ System corrupted: Wheel rejected. Map ----- +----------------------------------------------------+ | ??????# # ###### ###### | | ??????# # ###### | | ???????# ?# | | ??####### ### | | #! ## ^ | | # ## ^ | | #! """ ## """ T | | # """ ## """ """" | | # """ # """ """" | | # """ # """" | | # + ^ | | # """ # | | # """ # ## #### """" | | # """ ## ## ## """" | | # """ ## ### ## """" | | # ## #?# ## | | # ## #?? ## ^ | | ?######## ##?##### ^ !!! # | | ???????# #????## !! ## | | ???????# #????## !! ## | | ???????# #????## ## | | ???????# #????## %## | | ???????# #?############"T"#!## | | ?????#####g##### =[ T ##"""# ## | | ?????# # [ ###### ## | | ?????# @ ""#= [ ###### ## | | ?????# Y"# #???## ## | | ?????# ""####+########### ## | | ?????# #??# % ## | | ?????# """ #??# ########### ## | | ?????# """ #??# # #???## ## | | ?????# """ #??# # #????# ## | | ?????###########??# # #????# #? | | ??????????????????# # #????# #? | | ???????##########?# # #????# ## | | ???????# ! #?# # #????# | | ???????# " ### # #????# | | ???????# T + + #????# | | ???????# " ### # #????# | | ???????# #?# ######????# | | ???????# """ #?# # #????## | | ???????# """ #?# # #?????# | | ???????# """ #?# # % #????#T | | ???????# #?# # #????## | | ?????#######+###### # #?????# | | ?????#== #T## # #?????# | | ?????#== + #?????# | | ?????#]] # #?????# | | ?????#]] # #?????# < | | ?????#!! ##+#+######?????# | +----------------------------------------------------+ Best States ------------- Heat Dissipation 25 Energy Generation 10 Energy Capacity 250 Matter Stores 300 Matter Capacity 300 Sight Range 16 Terrain Scan Density 10 Evasion (%) 40 Recoil Reduction 2 Item Schematics ----------------- None Robot Schematics ------------------ None Fabricated ------------ Nothing Alien Tech Used ----------------- None Achievements -------------- None Challenges ------------ None Game ------ Seed BombBarrageRipteeth Manual? 0 Play Time 00:13:49 Cumulative 30.9 hours Start 2024.09.22 @ 13:14:37 End 2024.09.22 @ 13:26:32 Sessions 1 Manual Loads 0 Difficulty Rogue Special Mode None Game No. 12 Rogue 1 Adventurer 0 Explorer 11 Win Type - Total 0 Types 0/0/0/0/0/0/0/0/0 Lore% 14 Gallery% 21 Achievement% 23 Wizard Run 0 Options --------- Layout 1 ASCII 0 Keyboard 1 Movement Numpad Keybinds 0 Fullscreen 1 Font 32/SmallcapsGlow Map View 50x40 Zoom Use 0% Tactical HUD 1 Map Filters NONE Filters NONE Steam 1 RUN: 5a0df822-a6b7-406c-803f-a64c6b4bbab6